fUST/lending_fUST_20251110
["ID","MTS","AMOUNT","RATE_DAILY","PERIOD"]
[393516299,1762746638737,-151.0,0.00020789,7]
[393516300,1762746638746,-151.0,0.00020872,7]
[393516301,1762746638755,-151.0,0.00020873,7]
[393516302,1762746638766,-8815.07195851,0.00022,5]
[393516304,1762746638776,-151.0,0.00022,10]
[393516306,1762746638785,-151.0,0.00022,4]
[393516307,1762746638794,-168.0,0.00022008,2]
[393516308,1762746638804,-384.30852131,0.00022017,2]
[393516309,1762746638813,-500.36401727,0.00022041,2]
[393516310,1762746638824,-500.0,0.00022047,2]
[393516311,1762746638834,-500.0,0.00022047,2]
[393516312,1762746638843,-500.0,0.00022047,2]
[393516313,1762746638854,-500.0,0.00022047,2]
[393516314,1762746638864,-1719.0,0.0002208,2]
[393516315,1762746638875,-151.0,0.000221,9]
[393516316,1762746638885,-500.0,0.00022102,2]
[393516317,1762746638895,-500.0,0.00022102,2]
[393516318,1762746638905,-370.01825569,0.00022102,2]
[393516319,1762746638915,-500.0,0.00022102,2]
[393516320,1762746638924,-168.0,0.00022108,2]
[393516321,1762746638934,-168.0,0.00022108,2]
[393516322,1762746638944,-225.0,0.00022124,2]
[393516323,1762746638954,-987.0,0.0002213,2]
[393516324,1762746638964,-2174.801,0.0002213,2]
[393516325,1762746638975,-628.0,0.0002213,2]
[393516326,1762746638985,-168.0,0.00022148,2]
[393516327,1762746638995,-500.0,0.00022157,2]
[393516328,1762746639006,-472.45358954,0.00022157,2]
[393516329,1762746639019,-27.54641046,0.00022157,2]
[393516330,1762746639028,-427.29230531,0.00022157,2]
[393516331,1762746639040,-72.70769469,0.00022157,2]
[393516332,1762746639051,-1237.60441278,0.00022164,2]
[393516333,1762746639061,-168.0,0.00022172,2]
[393516334,1762746639072,-151.0,0.000222,10]
[393516335,1762746639083,-151.0,0.000222,9]
[393516336,1762746639094,-249.75288818,0.00022211,2]
[393516337,1762746639105,-500.0,0.00022211,2]
[393516338,1762746639116,-500.0,0.00022211,2]
[393516339,1762746639127,-168.0,0.0002223,2]
[393516340,1762746639137,-1719.0,0.0002223,2]
[393516341,1762746639147,-225.0,0.00022231,2]
[393516342,1762746639157,-495.264829,0.00022232,2]
[393516343,1762746639167,-341.0,0.00022236,2]
[393516344,1762746639177,-500.0,0.00022266,2]
[393516345,1762746639187,-500.0,0.00022266,2]
[393516346,1762746639197,-225.0,0.0002228,2]
[393516347,1762746639206,-151.0,0.000223,7]
[393516348,1762746639216,-151.0,0.000223,8]
[393516349,1762746639226,-168.0,0.00022317,2]
[393516350,1762746639236,-500.0,0.00022321,2]
[393516351,1762746639246,-475.40284527,0.00022321,2]
[393516352,1762746639255,-168.0,0.00022331,2]
[393516353,1762746639267,-168.0,0.00022332,2]
[393516354,1762746639276,-168.0,0.00022343,2]
[393516355,1762746639287,-500.0,0.00022376,2]
[393516356,1762746639298,-6076.72292922,0.00022386,2]
[393516363,1762746641035,-908.94263821,0.00022386,2]
[393516406,1762746643898,-413.4,0.000224,5]
[393516408,1762746643907,-151.0,0.000224,7]
[393516410,1762746643917,-232.92,0.00022431,2]
[393516416,1762746647154,-267.08,0.00022431,2]
[393516417,1762746647164,-13422.02437937,0.00022439,2]
[393516418,1762746647173,-300.0,0.00022439,20]
[393516419,1762746647182,-300.0,0.00022439,20]
[393516420,1762746647191,-300.0,0.00022439,20]
[393516421,1762746647200,-300.0,0.00022439,20]
[393516422,1762746647208,-300.0,0.00022439,20]
[393516423,1762746647217,-300.0,0.00022439,20]
[393516424,1762746647226,-300.0,0.00022439,20]
[393516425,1762746647236,-300.0,0.00022439,20]
[393516426,1762746647245,-300.0,0.00022439,20]
[393516427,1762746647254,-300.0,0.00022439,20]
[393516428,1762746647264,-300.0,0.00022439,20]
[393516429,1762746647273,-300.0,0.00022439,20]
[393516430,1762746647283,-300.0,0.00022439,20]
[393516431,1762746647292,-300.0,0.00022439,20]
[393516432,1762746647301,-300.0,0.00022439,20]
[393516433,1762746647310,-600.0,0.00022439,20]
[393516434,1762746647320,-168.0,0.00022472,2]
[393516435,1762746647329,-225.0,0.0002248,2]
[393516436,1762746647339,-500.0,0.00022485,2]
[393516437,1762746647348,-151.0,0.000225,7]
[393516438,1762746647358,-260.0,0.0002251,2]
[393516439,1762746647368,-472.26514325,0.00022516,2]
[393516440,1762746647377,-2000.0,0.00022516,2]
[393516441,1762746647387,-500.0,0.0002254,2]
[393516442,1762746647396,-500.0,0.00022595,2]
[393516443,1762746647406,-151.0,0.000226,5]
[393516444,1762746647416,-1719.0,0.00022619,2]
[393516445,1762746647425,-500.0,0.0002265,2]
[393516446,1762746647435,-225.0,0.00022658,2]
[393516447,1762746647445,-168.0,0.00022683,2]
[393516448,1762746647455,-151.0,0.000227,7]
[393516449,1762746647463,-252.27152098,0.00022705,2]
[393516450,1762746647473,-151.0,0.000228,9]
[393516451,1762746647482,-151.0,0.000229,5]
[393516452,1762746647492,-151.0,0.000229,6]
[393516453,1762746647502,-13385.95110373,0.00022998,2]
[393516454,1762746647520,-678.92998736,0.00022998,2]
[393516455,1762746786640,4359.58915183,0.0001962,3]
[393516456,1762746794714,5000.0,0.0001962,3]
[393516457,1762746856826,1237.973034,0.00032877,120]
[393516475,1762747616143,512.92,0.00032,120]
[393516478,1762747805803,906.4778728,0.00032877,120]
[393516495,1762747831970,-160.0,0.00019693,2]
[393516497,1762747831980,-169.11873314,0.00019707,2]
[393516499,1762747831990,-1200.0,0.00020368,2]
[393516501,1762747832000,-1200.0,0.00020369,2]
[393516504,1762747832009,-300.0,0.00020369,2]
[393516507,1762747832018,-300.0,0.0002037,2]
[393516509,1762747832028,-300.0,0.0002037,2]
[393516511,1762747832038,-300.0,0.0002037,2]
[393516513,1762747832048,-300.0,0.0002037,2]
[393516515,1762747832058,-300.0,0.0002037,2]
[393516517,1762747832067,-300.0,0.0002037,2]
[393516519,1762747832076,-300.0,0.0002037,2]
[393516521,1762747832086,-300.0,0.0002037,2]
[393516523,1762747832096,-300.0,0.0002037,2]
[393516525,1762747832106,-300.0,0.0002037,2]
[393516527,1762747832116,-300.0,0.0002037,2]
[393516529,1762747832125,-300.0,0.0002037,2]
[393516531,1762747832134,-300.0,0.0002037,2]
[393516533,1762747832143,-300.0,0.0002037,2]
[393516535,1762747832153,-300.0,0.0002037,2]
[393516536,1762747832163,-500.0,0.000204,2]
[393516537,1762747832172,-500.0,0.000204,2]
[393516538,1762747832182,-500.0,0.000204,2]
[393516539,1762747832191,-500.0,0.000204,2]
[393516540,1762747832200,-593.50572922,0.000204,2]
[393516541,1762747832210,-500.0,0.000204,2]
[393516542,1762747832219,-373.946429,0.0002068,2]
[393516543,1762747832229,-600.0,0.00020776,2]
[393516544,1762747832239,-409.0245789,0.00020885,2]
[393516545,1762747832250,-590.9754211,0.00020885,2]
[393516546,1762747832259,-429.229519,0.00021397,2]
[393516547,1762747832268,-199.56010511,0.00021707,2]
[393516548,1762747832278,-413.60495479,0.00022125,2]
[393516549,1762747832288,-91.11431454,0.00022125,2]
[393516550,1762747832298,-500.0,0.0002216,2]
[393516551,1762747832307,-495.97842739,0.0002216,2]
[393516552,1762747832317,-501.74051135,0.0002216,2]
[393516553,1762747832326,-420.0,0.00022171,2]
[393516554,1762747832336,-500.0,0.000222,2]
[393516555,1762747832347,-51.31647383,0.000222,2]
[393516562,1762747837788,-448.68352617,0.000222,2]
[393516563,1762747837799,-388.7905898,0.00022242,2]
[393516564,1762747837810,-592.8099389,0.00022242,2]
[393516565,1762747837820,-300.0086418,0.00022242,2]
[393516566,1762747837829,-300.0086418,0.00022242,2]
[393516567,1762747837839,-500.0,0.00022248,2]
[393516568,1762747837848,-150.0,0.00022249,2]
[393516569,1762747837857,-150.0,0.00022249,2]
[393516570,1762747837867,-150.137,0.00022249,2]
[393516571,1762747837876,-150.188,0.00022249,2]
[393516572,1762747837885,-150.0,0.00022249,2]
[393516573,1762747837895,-1867.46433344,0.00022249,2]
[393516670,1762747839912,-269.7041918,0.00022249,2]
[393516694,1762747840021,-29.83147476,0.00022249,2]
[393516696,1762747840032,-567.06852524,0.00022249,2]
[393517114,1762747843132,-60.93147476,0.00022249,2]
[393517116,1762747843141,-546.639,0.00022249,2]
[393517118,1762747843151,-602.3888626,0.00022256,2]
[393517120,1762747843160,-606.5858912,0.00022256,2]
[393517122,1762747843170,-305.5577339,0.00022256,2]
[393517124,1762747843179,-300.0086418,0.00022256,2]
[393517127,1762747843188,-300.0086418,0.00022256,2]
[393517129,1762747843198,-1548.05405986,0.00022499,2]
[393517132,1762747843207,-500.0,0.00022598,2]
[393517135,1762747843216,-324.15171228,0.00022598,2]
[393517137,1762747843225,-500.0,0.00022598,2]
[393517139,1762747843234,-500.0,0.00022598,2]
[393517140,1762747843244,-500.0,0.00022598,2]
[393517142,1762747843254,-500.0,0.00022598,2]
[393517144,1762747843263,-219.47446507,0.00022598,2]
[393517146,1762747843273,-500.0,0.00022598,2]
[393517148,1762747843283,-500.0,0.00022598,2]
[393517151,1762747843293,-500.0,0.00022598,2]
[393517152,1762747843304,-500.0,0.00022598,2]
[393517154,1762747843314,-500.0,0.00022598,2]
[393517157,1762747843324,-500.0,0.00022598,2]
[393517158,1762747843333,-500.0,0.00022598,2]
[393517161,1762747843343,-500.0,0.00022598,2]
[393517163,1762747843353,-500.0,0.00022598,2]
[393517165,1762747843363,-533.9948866,0.00022598,2]
[393517166,1762747843374,-500.0,0.00022598,2]
[393517168,1762747843384,-500.0,0.00022598,2]
[393517170,1762747843394,-276.21116638,0.00022598,2]
[393517173,1762747843404,-500.0,0.00022598,2]
[393517175,1762747843413,-500.0,0.00022598,2]
[393517177,1762747843423,-500.0,0.00022598,2]
[393517179,1762747843433,-500.0,0.00022598,2]
[393517181,1762747843443,-500.0,0.00022598,2]
[393517183,1762747843453,-500.0,0.00022598,2]
[393517185,1762747843463,-500.0,0.00022598,2]
[393517187,1762747843472,-500.0,0.00022598,2]
[393517189,1762747843482,-500.0,0.00022598,2]
[393517191,1762747843491,-500.0,0.00022598,2]
[393517193,1762747843501,-500.0,0.00022598,2]
[393517195,1762747843510,-500.0,0.00022598,2]
[393517197,1762747843520,-500.0,0.00022598,2]
[393517199,1762747843531,-500.0,0.00022598,2]
[393517201,1762747843543,-500.0,0.00022598,2]
[393517203,1762747843557,-500.0,0.00022598,2]
[393517205,1762747843567,-22724.58178261,0.00022605,2]
[393517280,1762747846158,-1259.88,0.00022605,2]
[393517282,1762747846476,-633.04433459,0.00022605,2]
[393517283,1762747846486,-536.6388979,0.00022605,2]
[393517284,1762747846496,-237.15184843,0.00022605,2]
[393517285,1762748255975,240.54,0.00018,10]
[393517286,1762748283751,240.64,0.00018,10]
[393517287,1762748293564,360.8,0.00018,2]
[393517288,1762748547284,166.0,0.00022676,120]
[393517289,1762748548636,166.0,0.0002381,120]
[393517290,1762748550144,166.0,0.00025,120]
[393517291,1762748551910,166.0,0.0002625,120]
[393517292,1762748553363,166.0,0.00027563,120]
[393517293,1762748554821,166.0,0.00028941,120]
[393517294,1762748556121,166.0,0.00030388,120]
[393517295,1762748557528,166.0,0.00031908,120]
[393517296,1762748663753,329.624,0.0003707,120]
[393517317,1762748864372,17182.98882938,0.00018,2]
[393517319,1762748868239,9674.09216619,0.00018,2]
[393517322,1762748906542,22111.49331036,0.00017,2]
[393517324,1762748912032,14942.73645127,0.00018,2]
[393517353,1762749031976,-2693.93437373,0.00019602,2]
[393517422,1762749038089,-2306.06562627,0.00019602,2]
[393517423,1762749038099,-954.0,0.00019602,2]
[393517424,1762749038109,-180.15241374,0.00019799,2]
[393517442,1762749043292,-391.49539925,0.00019601,2]
[393517448,1762749046409,-4608.50460075,0.00019601,2]
[393517449,1762749046420,-1019.84758626,0.00019799,2]
[393517450,1762749046431,-5000.0,0.000198,2]
[393517451,1762749046442,-300.0,0.00019998,2]
[393517452,1762749046453,-1159.98244578,0.0002,2]
[393517453,1762749046463,-500.0,0.00020397,2]
[393517454,1762749046474,-500.0,0.00020397,2]
[393517455,1762749046484,-500.0,0.00020397,2]
[393517456,1762749046495,-500.0,0.00020397,2]
[393517457,1762749046505,-500.0,0.00020397,2]
[393517458,1762749046515,-555.12166009,0.00020397,2]
[393517460,1762749046526,-500.0,0.00020397,2]
[393517462,1762749046535,-613.8064837,0.00020397,2]
[393517463,1762749046545,-500.0,0.00020397,2]
[393517464,1762749046555,-500.0,0.00020397,2]
[393517465,1762749046564,-500.0,0.00020397,2]
[393517466,1762749046574,-500.0,0.00020397,2]
[393517467,1762749046584,-500.0,0.00020397,2]
[393517468,1762749046595,-500.0,0.00020397,2]
[393517469,1762749046605,-500.0,0.00020397,2]
[393517470,1762749046614,-500.0,0.00020397,2]
[393517471,1762749046623,-500.0,0.00020397,2]
[393517472,1762749046633,-500.0,0.00020397,2]
[393517473,1762749046643,-500.0,0.00020397,2]
[393517474,1762749046657,-242.73903968,0.00020397,2]
[393517475,1762749046667,-500.0,0.00020397,2]
[393517476,1762749046676,-500.0,0.00020397,2]
[393517477,1762749046686,-500.0,0.00020397,2]
[393517478,1762749046696,-298.45774765,0.00020397,2]
[393517479,1762749046705,-215.93727939,0.00020397,2]
[393517480,1762749046715,-500.0,0.00020397,2]
[393517481,1762749046727,-500.0,0.00020397,2]
[393517482,1762749046737,-500.0,0.00020397,2]
[393517483,1762749046746,-500.0,0.00020397,2]
[393517484,1762749046755,-500.0,0.00020397,2]
[393517485,1762749046764,-500.0,0.00020397,2]
[393517486,1762749046774,-641.98220378,0.00020397,2]
[393517487,1762749046783,-500.0,0.00020397,2]
[393517488,1762749046791,-500.0,0.00020397,2]
[393517489,1762749046800,-300.0,0.00020398,2]
[393517490,1762749046810,-300.0,0.00020398,2]
[393517491,1762749046819,-300.0,0.00020398,2]
[393517492,1762749046828,-300.0,0.00020398,2]
[393517493,1762749046837,-300.0,0.00020398,2]
[393517494,1762749046848,-300.0,0.00020398,2]
[393517495,1762749046857,-300.0,0.00020398,2]
[393517496,1762749046867,-300.0,0.00020398,2]
[393517497,1762749046876,-300.0,0.00020398,2]
[393517498,1762749046886,-300.0,0.00020398,2]
[393517499,1762749046895,-300.0,0.00020398,2]
[393517500,1762749046904,-300.0,0.00020398,2]
[393517501,1762749046913,-300.0,0.00020398,2]
[393517502,1762749046922,-300.0,0.00020398,2]
[393517503,1762749046932,-300.0,0.00020398,2]
[393517504,1762749046941,-50000.0,0.00020398,2]
[393517505,1762749046950,-503.05945252,0.000204,2]
[393517506,1762749046959,-500.0,0.000204,2]
[393517507,1762749046968,-500.0,0.000204,2]
[393517508,1762749046978,-500.0,0.000204,2]
[393517509,1762749046987,-500.0,0.000204,2]
[393517510,1762749046996,-600.0,0.00020805,2]
[393517511,1762749047006,-251.44066914,0.00020948,2]
[393517512,1762749047015,-1000.0,0.00020948,2]
[393517513,1762749047024,-506.21681923,0.00020948,2]
[393517514,1762749047034,-1000.0,0.00020948,2]
[393517515,1762749047043,-170.65802945,0.00021248,2]
[393517516,1762749047053,-587.3752193,0.00021478,2]
[393517517,1762749047063,-1500.0,0.00021496,2]
[393517518,1762749047072,-1500.0,0.00021496,2]
[393517519,1762749047081,-480.0,0.00021667,2]
[393517520,1762749047091,-420.0,0.00021776,2]
[393517521,1762749047100,-600.921326,0.00021834,2]
[393517522,1762749047109,-760.57,0.0002198,10]
[393517523,1762749047118,-1386.15,0.0002198,10]
[393517524,1762749047127,-1200.0,0.00021989,2]
[393517525,1762749047136,-500.0,0.00021989,2]
[393517526,1762749047145,-20465.06011935,0.0002199,2]
[393517527,1762749047155,-252.10500002,0.00022168,2]
[393517528,1762749047164,-323.11772344,0.00022168,2]
[393517529,1762749047177,-1000.90815876,0.00022168,2]
[393517530,1762749047186,-500.0,0.00022168,2]
[393517531,1762749047195,-500.0,0.00022173,2]
[393517532,1762749047204,-500.0,0.00022173,2]
[393517533,1762749047214,-500.0,0.00022197,2]
[393517534,1762749047223,-500.0,0.00022198,2]
[393517535,1762749047232,-500.0,0.00022198,2]
[393517536,1762749047241,-500.0,0.00022198,2]
[393517537,1762749047250,-160.48,0.000222,2]
[393517538,1762749047259,-160.48,0.000222,2]
[393517539,1762749047268,-160.48,0.000222,2]
[393517540,1762749047279,-160.48,0.000222,2]
[393517541,1762749047288,-160.48,0.000222,2]
[393517542,1762749047297,-160.48,0.000222,2]
[393517543,1762749047307,-160.48,0.000222,2]
[393517544,1762749047315,-160.48,0.000222,2]
[393517545,1762749047325,-160.48,0.000222,2]
[393517546,1762749047336,-191.0459252,0.00022212,2]
[393517547,1762749047347,-155.1521546,0.00022212,2]
[393517548,1762749047357,-191.0459252,0.00022212,2]
[393517549,1762749047366,-306.0,0.00022212,2]
[393517550,1762749047376,-153.0,0.00022212,2]
[393517551,1762749047386,-153.0,0.00022212,2]
[393517552,1762749047395,-191.0459252,0.00022212,2]
[393517553,1762749047404,-153.0,0.00022212,2]
[393517554,1762749047420,-191.0459252,0.00022212,2]
[393517555,1762749047429,-191.0459252,0.00022212,2]
[393517556,1762749047438,-191.0459252,0.00022212,2]
[393517557,1762749047447,-191.0459252,0.00022212,2]
[393517558,1762749047457,-191.0459252,0.00022212,2]
[393517559,1762749047467,-178.8657653,0.00022212,2]
[393517560,1762749047476,-500.0,0.00022245,2]
[393517561,1762749047486,-500.0,0.00022245,2]
[393517562,1762749047495,-500.0,0.00022245,2]
[393517563,1762749047504,-500.0,0.00022245,2]
[393517564,1762749047513,-500.0,0.00022245,2]
[393517565,1762749047523,-500.0,0.00022245,2]
[393517566,1762749047532,-1332.16,0.00022245,2]
[393517567,1762749047542,-1332.16,0.00022245,2]
[393517568,1762749047551,-1332.16,0.00022245,2]
[393517569,1762749047560,-1332.16,0.00022245,2]
[393517570,1762749047570,-1332.16,0.00022245,2]
[393517571,1762749047579,-1332.16,0.00022245,2]
[393517572,1762749047589,-1332.16,0.00022245,2]
[393517573,1762749047600,-1332.16,0.00022245,2]
[393517574,1762749047610,-1332.16,0.00022245,2]
[393517575,1762749047620,-1332.16,0.00022245,2]
[393517576,1762749047630,-122876.1922187,0.00022246,2]
[393517577,1762749047639,-502.0,0.00022267,2]
[393517578,1762749047648,-500.0,0.00022273,2]
[393517579,1762749047657,-500.0,0.00022273,2]
[393517580,1762749047668,-505.18209846,0.00022273,2]
[393517581,1762749047677,-500.0,0.00022273,2]
[393517582,1762749047687,-500.0,0.00022273,2]
[393517583,1762749047696,-500.0,0.00022273,2]
[393517584,1762749047706,-186.27097538,0.00022273,2]
[393517585,1762749047715,-500.0,0.00022273,2]
[393517586,1762749047725,-500.0,0.00022273,2]
[393517587,1762749047734,-500.0,0.00022273,2]
[393517588,1762749047743,-381.29859843,0.00022273,2]
[393517589,1762749047752,-508.17394651,0.00022273,2]
[393517590,1762749047762,-500.0,0.00022273,2]
[393517591,1762749047771,-13858.93320141,0.00022273,2]
[393517592,1762749047782,-193.6399806,0.00022293,2]
[393517593,1762749047791,-300.0086418,0.00022293,2]
[393517594,1762749047801,-300.0086418,0.00022293,2]
[393517595,1762749047810,-151.0,0.000223,8]
[393517596,1762749047819,-151.0,0.000223,9]
[393517597,1762749047828,-151.0,0.000223,5]
[393517598,1762749047838,-151.0,0.000223,5]
[393517599,1762749047849,-151.0,0.000223,7]
[393517600,1762749047858,-151.0,0.000223,9]
[393517601,1762749047868,-151.0,0.000223,7]
[393517602,1762749047878,-151.0,0.000223,10]
[393517603,1762749047887,-198.47235615,0.000223,2]
[393517604,1762749047896,-1118.52052147,0.0002232,2]
[393517605,1762749047906,-502.0,0.00022353,2]
[393517606,1762749047915,-151.0,0.00022356,2]
[393517607,1762749047924,-204.976008,0.00022356,2]
[393517608,1762749047933,-500.0,0.00022356,2]
[393517609,1762749047943,-500.0,0.00022356,2]
[393517610,1762749048046,-500.0,0.00022356,2]
[393517611,1762749048068,-500.0,0.00022356,2]
[393517612,1762749048079,-500.0,0.00022356,2]
[393517613,1762749048088,-500.0,0.00022356,2]
[393517614,1762749048097,-500.0,0.00022356,2]
[393517615,1762749048106,-500.0,0.00022356,2]
[393517616,1762749048117,-500.0,0.00022356,2]
[393517617,1762749048126,-427.68941082,0.00022356,2]
[393517618,1762749048135,-151.0,0.00022356,7]
[393517619,1762749048144,-777000.0,0.00022356,2]
[393517620,1762749048153,-500.0,0.00022373,2]
[393517621,1762749048162,-500.84248899,0.00022373,2]
[393517622,1762749048171,-500.7367344,0.00022373,2]
[393517623,1762749048180,-500.0,0.00022373,2]
[393517624,1762749048190,-500.0,0.00022373,2]
[393517625,1762749048199,-501.46197215,0.00022373,2]
[393517626,1762749048208,-500.0,0.00022373,2]
[393517627,1762749048217,-502.03603565,0.00022373,2]
[393517628,1762749048226,-178.90793078,0.00022373,2]
[393517629,1762749048235,-502.8392399,0.00022373,2]
[393517630,1762749048244,-500.0,0.00022373,2]
[393517631,1762749048253,-503.33624176,0.00022373,2]
[393517632,1762749048262,-500.0,0.00022373,2]
[393517633,1762749048272,-501.33312122,0.00022373,2]
[393517634,1762749048281,-500.0,0.00022373,2]
[393517635,1762749048290,-500.51563619,0.00022373,2]
[393517636,1762749048299,-270.75206587,0.00022373,2]
[393517637,1762749048308,-500.0,0.00022373,2]
[393517638,1762749048316,-501.84187356,0.00022373,2]
[393517639,1762749048327,-501.59046373,0.00022373,2]
[393517640,1762749048338,-500.0,0.00022373,2]
[393517641,1762749048348,-531.94885663,0.00022373,2]
[393517642,1762749048357,-3880.13172984,0.00022375,7]
[393517643,1762749048366,-502.0,0.00022385,2]
[393517644,1762749048379,-500.0,0.00022442,2]
[393517645,1762749048388,-1332.16,0.00022446,2]
[393517646,1762749048398,-502.0,0.00022458,2]
[393517647,1762749048408,-1332.16,0.00022574,2]
[393517648,1762749048417,-781.605805,0.00022575,2]
[393517649,1762749048426,-8799.4687744,0.00022575,2]
[393517650,1762749048435,-402.4791734,0.00022575,2]
[393517651,1762749048444,-5278.0663127,0.00022575,2]
[393517652,1762749048453,-309.10512976,0.00022598,2]
[393517653,1762749048462,-266.94835037,0.00022598,2]
[393517654,1762749048471,-502.0,0.000226,2]
[393517655,1762749048480,-193.2219114,0.00022605,2]
[393517656,1762749048489,-169.44999529,0.00022605,3]
[393517657,1762749048498,-151.46488199,0.00022605,3]
[393517658,1762749048507,-153.0,0.00022605,3]
[393517659,1762749048516,-153.0,0.00022605,3]
[393517660,1762749048525,-153.0,0.00022605,3]
[393517661,1762749048534,-151.0,0.00022605,3]
[393517662,1762749048543,-332.0,0.00022605,3]
[393517663,1762749048552,-153.0,0.00022605,3]
[393517664,1762749048561,-151.0,0.00022605,3]
[393517665,1762749048571,-153.0,0.00022605,3]
[393517666,1762749048580,-332.0,0.00022605,3]
[393517667,1762749048589,-151.0,0.00022605,3]
[393517668,1762749048599,-332.0,0.00022605,3]
[393517669,1762749048609,-151.0,0.00022605,3]
[393517670,1762749048618,-153.0,0.00022605,3]
[393517671,1762749048627,-332.0,0.00022605,3]
[393517672,1762749048636,-151.0,0.00022605,3]
[393517673,1762749048645,-153.0,0.00022605,3]
[393517674,1762749048654,-332.0,0.00022605,3]
[393517675,1762749048663,-151.0,0.00022605,3]
[393517676,1762749048672,-153.0,0.00022605,3]
[393517677,1762749048681,-151.0,0.00022605,3]
[393517678,1762749048690,-332.0,0.00022605,3]
[393517679,1762749048698,-153.0,0.00022605,3]
[393517680,1762749048707,-151.0,0.00022605,3]
[393517681,1762749048716,-332.0,0.00022605,3]
[393517682,1762749048726,-153.0,0.00022605,3]
[393517683,1762749048735,-151.0,0.00022605,3]
[393517684,1762749048744,-153.0,0.00022605,3]
[393517685,1762749048753,-332.0,0.00022605,3]
[393517686,1762749048762,-151.0,0.00022605,3]
[393517687,1762749048771,-157.34589828,0.00022605,3]
[393517688,1762749048781,-332.0,0.00022605,3]
[393517689,1762749048790,-151.0,0.00022605,3]
[393517690,1762749048799,-153.0,0.00022605,3]
[393517691,1762749048809,-332.0,0.00022605,3]
[393517692,1762749048818,-151.0,0.00022605,3]
[393517693,1762749048827,-153.0,0.00022605,3]
[393517694,1762749048836,-332.0,0.00022605,3]
[393517695,1762749048846,-189.98154673,0.00022605,3]
[393517696,1762749048855,-153.0,0.00022605,3]
[393517697,1762749048863,-332.0,0.00022605,3]
[393517698,1762749048872,-151.0,0.00022605,3]
[393517699,1762749048881,-153.0,0.00022605,3]
[393517700,1762749048891,-332.0,0.00022605,3]
[393517701,1762749048900,-332.0,0.00022605,3]
[393517702,1762749048909,-332.0,0.00022605,3]
[393517703,1762749048918,-332.0,0.00022605,3]
[393517704,1762749048927,-194.87966578,0.00022605,3]
[393517705,1762749048936,-166.0,0.00022605,3]
[393517706,1762749048945,-332.0,0.00022605,3]
[393517707,1762749048954,-166.0,0.00022605,3]
[393517708,1762749048963,-332.0,0.00022605,3]
[393517709,1762749048972,-166.0,0.00022605,3]
[393517710,1762749048981,-332.0,0.00022605,3]
[393517711,1762749048991,-332.0,0.00022605,3]
[393517712,1762749049000,-332.0,0.00022605,3]
[393517713,1762749049010,-332.0,0.00022605,3]
[393517714,1762749049019,-332.0,0.00022605,3]
[393517715,1762749049028,-332.0,0.00022605,3]
[393517716,1762749049037,-332.0,0.00022605,3]
[393517717,1762749049046,-332.0,0.00022605,3]
[393517718,1762749049055,-332.0,0.00022605,3]
[393517719,1762749049064,-332.0,0.00022605,3]
[393517720,1762749049073,-332.0,0.00022605,3]